fUST/lending_fUST_20240922
["ID","MTS","AMOUNT","RATE_DAILY","PERIOD"]
[338867552,1726956663000,-150.0,0.00022666,2]
[338867553,1726956663009,-1216.0,0.00022666,2]
[338867554,1726956663019,-1079.0,0.00022678,2]
[338867555,1726956663028,-166.666666,0.00022944,2]
[338867556,1726956663038,-5000.0,0.00022968,2]
[338867557,1726956663048,-1000.18,0.00023,10]
[338867558,1726956663057,-240.49491411,0.00023,2]
[338867559,1726956663067,-11448.80235144,0.00023,2]
[338867560,1726956663077,-1000.0,0.00023,23]
[338867561,1726956663087,-784.04776618,0.00023,30]
[338867562,1726956663097,-200.32585475,0.00023,3]
[338867563,1726956663106,-3000.0,0.00023,14]
[338867564,1726956663116,-600.0,0.00023,2]
[338867565,1726956663125,-200.0,0.00023,2]
[338867566,1726956663134,-338.0,0.00023,2]
[338867567,1726956663144,-712.0,0.00023,2]
[338867568,1726956663154,-200.0,0.00023,2]
[338867569,1726956663164,-200.0,0.00023,2]
[338867570,1726956663174,-229.0,0.0002305,8]
[338867571,1726956663183,-412.92111046,0.00023068,2]
[338867572,1726956663193,-2000.0,0.00023074,2]
[338867573,1726956663203,-1887.38005517,0.00023074,2]
[338867574,1726956663213,-1111.0,0.00023233,120]
[338867575,1726956663223,-500.0,0.00023233,120]
[338867576,1726956663233,-500.0,0.00023287,2]
[338867577,1726956663243,-500.0,0.00023287,2]
[338867578,1726956663252,-500.0,0.00023287,2]
[338867579,1726956663262,-500.0,0.00023287,2]
[338867580,1726956663272,-500.0,0.00023287,2]
[338867581,1726956663281,-500.0,0.00023287,2]
[338867582,1726956663291,-500.0,0.00023287,2]
[338867583,1726956663301,-500.0,0.00023287,2]
[338867584,1726956663311,-500.0,0.00023287,2]
[338867585,1726956663322,-500.0,0.00023287,2]
[338867586,1726956663332,-500.0,0.00023287,2]
[338867587,1726956663342,-500.0,0.00023287,2]
[338867588,1726956663351,-500.0,0.00023287,2]
[338867589,1726956663361,-592.43483152,0.00023287,2]
[338867590,1726956663370,-712.0,0.00023288,2]
[338867591,1726956663381,-1282.81,0.000233,31]
[338867592,1726956663392,-1282.81,0.000233,31]
[338867593,1726956663401,-1282.81,0.000233,31]
[338867594,1726956663411,-1282.81,0.000233,31]
[338867595,1726956663421,-1282.81,0.000233,31]
[338867596,1726956663431,-1282.81,0.000233,31]
[338867597,1726956663442,-1282.81,0.000233,31]
[338867598,1726956663451,-1282.81,0.000233,31]
[338867599,1726956663461,-1282.81,0.000233,31]
[338867600,1726956663471,-1282.81,0.000233,31]
[338867601,1726956663482,-1282.81,0.000233,31]
[338867602,1726956663492,-1282.81,0.000233,31]
[338867603,1726956663502,-1282.81,0.000233,31]
[338867604,1726956663511,-1282.81,0.000233,31]
[338867605,1726956663521,-1282.81,0.000233,31]
[338867606,1726956663530,-1282.81,0.000233,31]
[338867607,1726956663540,-1282.81,0.000233,31]
[338867608,1726956663551,-1282.81,0.000233,31]
[338867609,1726956663561,-1282.81,0.000233,31]
[338867610,1726956663571,-1282.81,0.000233,31]
[338867611,1726956663580,-1282.81,0.000233,31]
[338867612,1726956663591,-1282.81,0.000233,31]
[338867613,1726956663599,-1282.81,0.000233,31]
[338867614,1726956663609,-1282.81,0.000233,31]
[338867615,1726956663619,-1500.0,0.00023346,2]
[338867616,1726956663629,-504.46749073,0.00023346,2]
[338867617,1726956663639,-372.25597636,0.00023346,2]
[338867618,1726956663649,-338.0,0.00023374,2]
[338867619,1726956663658,-166.666666,0.00023456,2]
[338867620,1726956663668,-4825.10721739,0.000235,2]
[338867621,1726956663677,-712.0,0.00023562,2]
[338867622,1726956663687,-600.0,0.000236,2]
[338867623,1726956663696,-40000.0,0.0002377,12]
[338867624,1726956663706,-712.0,0.00023836,2]
[338867625,1726956663715,-3000.0,0.000239,30]
[338867626,1726956663725,-253.31,0.00023914,2]
[338867627,1726956663734,-166.666666,0.00023969,2]
[338867628,1726956663743,-644.1711973,0.00023992,2]
[338867629,1726956663755,-286.34296194,0.00024,30]
[338867630,1726956663765,-500.0,0.00024,2]
[338867631,1726956663774,-232.668363,0.00024,2]
[338867632,1726956663784,-43299.50961864,0.00024,60]
[338867633,1726956663795,-1500.0,0.00024,21]
[338867634,1726956663805,-169.0,0.00024,2]
[338867635,1726956663815,-4993.23449,0.00024,120]
[338867636,1726956663825,-302.69733596,0.00024,2]
[338867637,1726956663837,-302.66710251,0.00024,2]
[338867638,1726956663854,-229.0,0.000241,10]
[338867639,1726956663864,-712.0,0.0002411,2]
[338867640,1726956663874,-306.0,0.0002415,2]
[338867641,1726956663882,-712.0,0.00024164,2]
[338867642,1726956663892,-201.0,0.00024164,2]
[338867643,1726956663901,-600.0,0.000242,2]
[338867644,1726956663910,-302.69733596,0.0002424,2]
[338867645,1726956663919,-302.66710251,0.0002424,2]
[338867646,1726956663927,-338.0,0.00024255,2]
[338867647,1726956663938,-2204.36,0.000243,7]
[338867648,1726956663948,-712.0,0.00024384,2]
[338867649,1726956663958,-1500.0,0.00024447,2]
[338867650,1726956663967,-302.69733596,0.0002448,2]
[338867651,1726956663976,-302.66710251,0.0002448,2]
[338867652,1726956663985,-166.666666,0.00024482,2]
[338867653,1726956663995,-1329.00006327,0.00024498,20]
[338867654,1726956664005,-185.44981468,0.00024548,2]
[338867655,1726956664016,-2744.699704,0.00024658,7]
[338867656,1726956664026,-2744.699704,0.00024658,7]
[338867657,1726956664037,-2744.699704,0.00024658,7]
[338867658,1726956664047,-2744.699704,0.00024658,7]
[338867659,1726956664059,-2744.699704,0.00024658,7]
[338867660,1726956664068,-2744.699704,0.00024658,7]
[338867661,1726956664078,-2744.699704,0.00024658,7]
[338867662,1726956664088,-2744.699704,0.00024658,7]
[338867663,1726956664098,-2744.699704,0.00024658,7]
[338867664,1726956664108,-2744.699704,0.00024658,7]
[338867665,1726956664118,-2744.699704,0.00024658,7]
[338867666,1726956664128,-2744.699704,0.00024658,7]
[338867667,1726956664138,-2744.699704,0.00024658,7]
[338867668,1726956664149,-2744.699704,0.00024658,7]
[338867669,1726956664158,-2744.699704,0.00024658,7]
[338867670,1726956664167,-2744.699704,0.00024658,7]
[338867671,1726956664177,-2744.699704,0.00024658,7]
[338867672,1726956664187,-2744.699704,0.00024658,7]
[338867673,1726956664197,-2744.699704,0.00024658,7]
[338867674,1726956664207,-2744.699699,0.00024658,7]
[338867675,1726956664217,-200.0,0.00024658,15]
[338867676,1726956664226,-380.0,0.00024658,2]
[338867677,1726956664236,-183677.91,0.000247,14]
[338867678,1726956664246,-10599.54,0.000247,14]
[338867679,1726956664256,-395916.74,0.000247,14]
[338867680,1726956664269,-4078.42,0.000247,7]
[338867681,1726956664278,-92621.68,0.000247,14]
[338867682,1726956664287,-302.69733596,0.0002472,2]
[338867683,1726956664297,-302.66710251,0.0002472,2]
[338867684,1726956664307,-600.0,0.000248,2]
[338867685,1726956664317,-1282.81,0.000249,31]
[338867686,1726956664327,-1282.81,0.000249,31]
[338867687,1726956664341,-1282.81,0.000249,31]
[338867688,1726956664352,-1282.81,0.000249,31]
[338867689,1726956664362,-1282.81,0.000249,31]
[338867690,1726956664372,-1282.81,0.000249,31]
[338867691,1726956664382,-1282.81,0.000249,31]
[338867692,1726956664392,-1282.81,0.000249,31]
[338867693,1726956664402,-1282.81,0.000249,31]
[338867694,1726956664411,-1282.81,0.000249,31]
[338867695,1726956664422,-1282.81,0.000249,31]
[338867696,1726956664432,-1282.81,0.000249,31]
[338867697,1726956664443,-1282.81,0.000249,31]
[338867698,1726956664453,-1282.81,0.000249,31]
[338867699,1726956664464,-1282.81,0.000249,31]
[338867700,1726956664475,-1282.81,0.000249,31]
[338867701,1726956664485,-1282.81,0.000249,31]
[338867702,1726956664495,-1282.81,0.000249,31]
[338867703,1726956664505,-1282.81,0.000249,31]
[338867704,1726956664514,-1282.81,0.000249,31]
[338867705,1726956664524,-1282.81,0.000249,31]
[338867706,1726956664534,-1282.81,0.000249,31]
[338867707,1726956664544,-1282.81,0.000249,31]
[338867708,1726956664555,-1282.81,0.000249,31]
[338867709,1726956664564,-1351.31,0.00024931,2]
[338867710,1726956664575,-2528.93,0.00024931,2]
[338867711,1726956664584,-302.69733596,0.0002496,2]
[338867712,1726956664594,-302.66710251,0.0002496,2]
[338867713,1726956664603,-150.0,0.00024973,2]
[338867714,1726956664612,-2500.0,0.00024978,2]
[338867715,1726956664622,-200.0,0.00025,2]
[338867716,1726956664632,-200.0,0.00025,2]
[338867717,1726956664641,-279.85324562,0.00025,2]
[338867718,1726956664651,-534.9,0.00025,31]
[338867719,1726956664660,-1000.5,0.00025,31]
[338867720,1726956664670,-1000.5,0.00025,31]
[338867721,1726956664679,-1000.5,0.00025,31]
[338867722,1726956664690,-1000.5,0.00025,31]
[338867723,1726956664700,-1144.9,0.00025,31]
[338867724,1726956664710,-75595.63876801,0.00025,2]
[338867725,1726956664721,-164.41841908,0.00025,2]
[338867726,1726956664730,-56547.69503241,0.00025,2]
[338867727,1726956664741,-10364.0,0.00025,2]
[338867728,1726956664751,-344.2920191,0.00025,2]
[338867729,1726956664761,-1033.18787126,0.00025,2]
[338867730,1726956664770,-1000.0,0.00025,5]
[338867731,1726956664781,-2331.6089113,0.00025,2]
[338867732,1726956664791,-338749.01362017,0.00025,2]
[338867733,1726956664801,-1106.63594187,0.00025,2]
[338867734,1726956664811,-1000.0,0.00025,25]
[338867735,1726956664820,-10610.0,0.00025,14]
[338867736,1726956664830,-46317.73629136,0.00025,7]
[338867737,1726956664841,-300.0,0.00025,2]
[338867738,1726956664853,-300.0,0.00025,2]
[338867739,1726956664863,-300.0,0.00025,2]
[338867740,1726956664873,-300.0,0.00025,2]
[338867741,1726956664883,-300.0,0.00025,2]
[338867742,1726956664892,-300.0,0.00025,2]
[338867743,1726956664902,-300.0,0.00025,2]
[338867744,1726956664913,-300.0,0.00025,2]
[338867745,1726956664923,-300.0,0.00025,2]
[338867746,1726956664933,-300.0,0.00025,2]
[338867747,1726956664942,-300.0,0.00025,2]
[338867748,1726956664952,-300.0,0.00025,2]
[338867749,1726956664962,-300.0,0.00025,2]
[338867750,1726956664973,-300.0,0.00025,2]
[338867751,1726956664983,-300.0,0.00025,2]
[338867752,1726956664992,-300.0,0.00025,2]
[338867753,1726956665002,-300.0,0.00025,2]
[338867754,1726956665011,-300.0,0.00025,2]
[338867755,1726956665022,-467.82063472,0.00025,60]
[338867756,1726956665032,-259.15744109,0.00025,10]
[338867757,1726956665042,-300.0,0.00025,2]
[338867758,1726956665051,-300.0,0.00025,2]
[338867759,1726956665061,-300.0,0.00025,2]
[338867760,1726956665071,-300.0,0.00025,2]
[338867761,1726956665081,-300.0,0.00025,2]
[338867762,1726956665096,-300.0,0.00025,2]
[338867763,1726956665106,-300.0,0.00025,2]
[338867764,1726956665115,-300.0,0.00025,2]
[338867765,1726956665125,-300.0,0.00025,2]
[338867766,1726956665135,-300.0,0.00025,2]
[338867767,1726956665145,-789.12,0.00025,120]
[338867768,1726956665154,-478765.62010085,0.00025,2]
[338867769,1726956665164,-5197.09947723,0.00025,120]
[338867770,1726956665173,-800.0,0.00025,120]
[338867771,1726956665182,-202.03003107,0.00025,2]
[338867772,1726956665192,-244.4,0.00025,2]
[338867773,1726956665202,-244.4,0.00025,2]
[338867774,1726956665211,-244.4,0.00025,2]
[338867775,1726956665220,-244.399999,0.00025,2]
[338867776,1726956665231,-2000.0,0.00025,7]
[338867777,1726956665241,-1497.51069678,0.00025,120]
[338867778,1726956665251,-618.44036581,0.00025,120]
[338867779,1726956665261,-10215.14,0.00025,30]
[338867780,1726956665271,-400.0,0.00025,2]
[338867781,1726956665280,-3608.21870964,0.0002505,120]
[338867782,1726956665290,-314445.44453852,0.0002509,2]
[338867783,1726956665299,-157.54597799,0.000251,10]
[338867784,1726956665309,-712.0,0.00025131,2]
[338867785,1726956665318,-270.0,0.0002516,12]
[338867786,1726956665327,-454.04600394,0.000252,4]
[338867787,1726956665339,-454.00065376,0.000252,4]
[338867788,1726956665349,-1351.31,0.00025205,2]
[338867789,1726956665359,-2528.93,0.00025205,2]
[338867790,1726956665369,-200.0,0.00025293,120]
[338867791,1726956665379,-4078.42,0.000253,7]
[338867792,1726956665389,-92621.68,0.000253,14]
[338867793,1726956665398,-306.97282736,0.000253,10]
[338867794,1726956665408,-280.0,0.000253,10]
[338867795,1726956665418,-725.0,0.00025373,2]
[338867796,1726956665428,-395916.74,0.000254,14]
[338867797,1726956665437,-600.0,0.000254,2]
[338867798,1726956665447,-454.04600394,0.0002544,4]
[338867799,1726956665456,-454.00065376,0.0002544,4]
[338867800,1726956665466,-339.0,0.00025468,2]
[338867801,1726956665475,-900.0,0.00025469,3]
[338867802,1726956665484,-644.1711973,0.00025469,2]
[338867803,1726956665494,-1351.33581292,0.00025479,2]
[338867804,1726956665504,-2529.05398502,0.00025479,2]
[338867805,1726956665514,-955.46313545,0.000255,45]
[338867806,1726956665523,-600.0,0.000255,3]
[338867807,1726956665534,-250.0,0.00025521,2]
[338867808,1726956665544,-153.0,0.0002554,2]
[338867809,1726956665553,-153.0,0.0002554,2]
[338867810,1726956665563,-153.0,0.0002554,2]
[338867811,1726956665573,-153.0,0.0002554,2]
[338867812,1726956665583,-153.0,0.0002554,2]
[338867813,1726956665593,-153.0,0.0002554,2]
[338867814,1726956665602,-2500.0,0.00025666,2]
[338867815,1726956665612,-150.0,0.00025666,2]
[338867816,1726956665622,-524.0,0.00025666,2]
[338867817,1726956665632,-150.0,0.00025666,2]
[338867818,1726956665768,-1216.0,0.00025666,2]
[338867819,1726956665779,-454.04600394,0.0002568,4]
[338867820,1726956665789,-454.00065376,0.0002568,4]
[338867821,1726956665799,-2000.0,0.00025687,2]
[338867822,1726956665808,-183677.91,0.000257,14]
[338867823,1726956665818,-10599.54,0.000257,14]
[338867824,1726956665828,-237.93053918,0.00025863,7]
[338867825,1726956665838,-454.04600394,0.0002592,4]
[338867826,1726956665847,-454.00065376,0.0002592,4]
[338867827,1726956665857,-952.54387447,0.00026,120]
[338867828,1726956665867,-524.70145165,0.00026,2]
[338867829,1726956665876,-250.0,0.00026,10]
[338867830,1726956665886,-789.12,0.00026,120]
[338867831,1726956665895,-500.0,0.00026,120]
[338867832,1726956665904,-3129.35534126,0.00026,120]
[338867833,1726956665914,-4078.42,0.00026,7]
[338867834,1726956665923,-92621.68,0.00026,14]
[338867835,1726956665933,-600.0,0.00026,2]
[338867836,1726956665942,-700.0,0.00026,4]
[338867837,1726956665951,-201.8368664,0.00026068,2]
[338867838,1726956665961,-712.0,0.00026098,2]
[338867839,1726956665971,-712.0,0.00026098,2]
[338867840,1726956665981,-454.04600394,0.0002616,4]
[338867841,1726956665990,-454.00065376,0.0002616,4]
[338867842,1726956666000,-395916.74,0.000262,14]
[338867843,1726956666009,-5000.0,0.00026218,2]
[338867844,1726956666018,-660.0,0.00026301,2]
[338867845,1726956666028,-376.475965,0.00026388,2]
[338867846,1726956666037,-7458.94652043,0.0002649,2]
[338867847,1726956666047,-700.0,0.000265,6]
[338867848,1726956666057,-314.6484823,0.00026521,2]
[338867849,1726956666066,-600.0,0.000266,2]
[338867850,1726956666076,-10599.54,0.000266,14]
[338867851,1726956666086,-1282.81,0.000266,31]
[338867852,1726956666095,-1282.81,0.000266,31]
[338867853,1726956666104,-1282.81,0.000266,31]
[338867854,1726956666114,-1282.81,0.000266,31]
[338867855,1726956666124,-1282.81,0.000266,31]
[338867856,1726956666134,-1282.81,0.000266,31]
[338867857,1726956666144,-1282.81,0.000266,31]
[338867858,1726956666153,-1282.81,0.000266,31]
[338867859,1726956666163,-1282.81,0.000266,31]
[338867860,1726956666173,-1282.81,0.000266,31]
[338867861,1726956666183,-1282.81,0.000266,31]
[338867862,1726956666192,-1282.81,0.000266,31]
[338867863,1726956666202,-274.06234475,0.0002661,30]
[338867864,1726956666211,-183677.91,0.000267,14]
[338867865,1726956666221,-762.63077828,0.00026788,2]
[338867866,1726956666231,-4078.42,0.000268,7]
[338867867,1726956666240,-92621.68,0.000268,14]
[338867868,1726956666250,-712.0,0.00026822,2]
[338867869,1726956666263,-1000.0,0.00026849,120]
[338867870,1726956666273,-395916.74,0.000269,14]
[338867871,1726956666283,-644.1711973,0.00026946,2]
[338867872,1726956666293,-2000.0,0.00027,2]
[338867873,1726956666302,-1000.0,0.00027,27]
[338867874,1726956666312,-789.12,0.00027,120]
[338867875,1726956666322,-1988.57548333,0.00027,120]
[338867876,1726956666332,-1110.5,0.00027,30]
[338867877,1726956666343,-383.01744,0.00027,120]
[338867878,1726956666353,-828.97,0.00027,30]
[338867879,1726956666362,-1500.0,0.00027,42]
[338867880,1726956666372,-700.0,0.00027,7]
[338867881,1726956666381,-712.0,0.00027064,2]
[338867882,1726956666391,-338.0,0.00027166,2]
[338867883,1726956666401,-323.99269988,0.00027178,21]
[338867884,1726956666410,-200.0,0.0002726,120]
[338867885,1726956666421,-735.56,0.00027397,2]
[338867886,1726956666433,-735.56,0.00027397,2]
[338867887,1726956666442,-735.56,0.00027397,2]
[338867888,1726956666452,-735.56,0.00027397,2]
[338867889,1726956666461,-735.56,0.00027397,2]
[338867890,1726956666472,-735.56,0.00027397,2]
[338867891,1726956666482,-735.56,0.00027397,2]
[338867892,1726956666492,-735.56,0.00027397,2]
[338867893,1726956666502,-735.56,0.00027397,2]
[338867894,1726956666513,-735.56,0.00027397,2]
[338867895,1726956666524,-735.56,0.00027397,2]
[338867896,1726956666535,-735.56,0.00027397,2]
[338867897,1726956666545,-735.56,0.00027397,2]
[338867898,1726956666554,-735.56,0.00027397,2]
[338867899,1726956666564,-735.56,0.00027397,2]
[338867900,1726956666574,-735.56,0.00027397,2]
[338867901,1726956666583,-735.56,0.00027397,2]
[338867902,1726956666592,-735.56,0.00027397,2]
[338867903,1726956666601,-735.56,0.00027397,2]
[338867904,1726956666610,-735.56,0.00027397,2]
[338867905,1726956666620,-500.0,0.00027397,2]
[338867906,1726956666630,-735.56,0.00027397,2]
[338867907,1726956666640,-735.56,0.00027397,2]
[338867908,1726956666649,-500.0,0.00027397,2]
[338867909,1726956666659,-735.56,0.00027397,2]
[338867910,1726956666668,-500.0,0.00027397,2]
[338867911,1726956666677,-500.0,0.00027397,2]
[338867912,1726956666686,-735.67990515,0.00027397,2]
[338867913,1726956666696,-500.0,0.00027397,2]
[338867914,1726956666705,-500.0,0.00027397,2]
[338867915,1726956666714,-500.0,0.00027397,2]
[338867916,1726956666724,-500.0,0.00027397,2]
[338867917,1726956666733,-500.0,0.00027397,2]
[338867918,1726956666742,-500.0,0.00027397,2]
[338867919,1726956666752,-500.0,0.00027397,2]
[338867920,1726956666762,-500.0,0.00027397,2]
[338867921,1726956666772,-500.0,0.00027397,2]
[338867922,1726956666781,-500.0,0.00027397,2]
[338867923,1726956666791,-500.0,0.00027397,2]
[338867924,1726956666800,-500.0,0.00027397,2]
[338867925,1726956666811,-500.0,0.00027397,2]
[338867926,1726956666822,-427.68433045,0.00027397,2]
[338867927,1726956666832,-289.82178219,0.00027397,2]
[338867928,1726956666845,-400.0,0.00027397,60]
[338867929,1726956666856,-1000.0,0.00027397,30]
[338867930,1726956666866,-500.0,0.00027397,2]
[338867931,1726956666877,-500.0,0.00027397,120]
[338867932,1726956666887,-500.0,0.00027397,10]
[338867933,1726956666896,-1758.1382494,0.00027397,30]
[338867934,1726956666906,-153.964959,0.00027397,7]
[338867935,1726956666916,-153.964959,0.00027397,7]
[338867936,1726956666926,-153.964959,0.00027397,7]
[338867937,1726956666936,-153.964959,0.00027397,7]
[338867938,1726956666946,-153.964959,0.00027397,7]
[338867939,1726956666956,-153.964959,0.00027397,7]
[338867940,1726956666966,-153.964959,0.00027397,7]
[338867941,1726956666975,-153.964959,0.00027397,7]
[338867942,1726956666985,-153.964959,0.00027397,7]
[338867943,1726956666994,-153.964959,0.00027397,7]
[338867944,1726956667004,-153.964959,0.00027397,7]
[338867945,1726956667013,-153.964959,0.00027397,7]
[338867946,1726956667022,-153.964959,0.00027397,7]
[338867947,1726956667032,-153.964959,0.00027397,7]
[338867948,1726956667042,-153.964959,0.00027397,7]
[338867949,1726956667052,-153.964959,0.00027397,7]
[338867950,1726956667061,-153.964959,0.00027397,7]
[338867951,1726956667070,-153.964959,0.00027397,7]
[338867952,1726956667081,-153.964959,0.00027397,7]
[338867953,1726956667091,-153.964953,0.00027397,7]
[338867954,1726956667100,-150.0,0.00027397,5]
[338867955,1726956667110,-4078.42,0.000274,7]
[338867956,1726956667119,-92621.68,0.000274,14]
[338867957,1726956667131,-1500.0,0.00027409,42]
[338867958,1726956667140,-43996.87442574,0.000275,2]
[338867959,1726956667151,-10599.54,0.000275,14]
[338867960,1726956667160,-700.0,0.000275,8]
[338867961,1726956667170,-712.0,0.00027547,2]
[338867962,1726956667180,-200.0,0.00027609,120]
[338867963,1726956667190,-153.1755406,0.00027617,2]
[338867964,1726956667199,-183677.91,0.000277,14]
[338867965,1726956667209,-200.0,0.00027715,120]
[338867966,1726956667219,-3000.0,0.00027773,5]
[338867967,1726956667229,-1029.80932931,0.000278,120]
[338867968,1726956667240,-395916.74,0.000278,14]
[338867969,1726956667250,-1500.0,0.00027818,42]
[338867970,1726956667259,-396.23332204,0.0002783,15]
[338867971,1726956667270,-31730.20056613,0.0002799,2]
[338867972,1726956667281,-1155.3481432,0.0002799,7]
[338867973,1726956667293,-16246.64651025,0.0002799,2]
[338867974,1726956667304,-250.0,0.00028,10]
[338867975,1726956667315,-2000.0,0.00028,20]
[338867976,1726956667327,-1000.0,0.00028,120]
[338867977,1726956667339,-1480.29,0.00028,30]
[338867978,1726956667357,-1000.0,0.00028,120]
[338867979,1726956667366,-789.12,0.00028,120]
[338867980,1726956667375,-1373.4693387,0.00028,120]
[338867981,1726956667385,-712.0,0.00028031,2]
[338867982,1726956667394,-4078.42,0.000281,7]
[338867983,1726956667404,-92621.68,0.000281,14]
[338867984,1726956667413,-1500.0,0.00028227,42]
[338867985,1726956667423,-712.0,0.00028272,2]
[338867986,1726956667433,-2500.0,0.00028278,5]
[338867987,1726956667442,-153.0,0.00028356,2]
[338867988,1726956667451,-153.0,0.00028356,2]
[338867989,1726956667461,-153.0,0.00028356,2]
[338867990,1726956667471,-644.1711973,0.00028423,2]
[338867991,1726956667480,-3000.0,0.00028461,5]
[338867992,1726956667490,-288.54302727,0.00028493,30]
[338867993,1726956667499,-161.176138,0.00028493,2]
[338867994,1726956667508,-161.176138,0.00028493,8]
[338867995,1726956667518,-161.176138,0.00028493,15]
[338867996,1726956667529,-161.176138,0.00028493,22]
[338867997,1726956667539,-161.176138,0.00028493,29]
[338867998,1726956667549,-161.176138,0.00028493,36]
[338867999,1726956667559,-161.176138,0.00028493,43]
[338868000,1726956667568,-161.176138,0.00028493,50]
[338868001,1726956667577,-161.176138,0.00028493,57]
[338868002,1726956667588,-161.176138,0.00028493,64]
[338868003,1726956667599,-161.176138,0.00028493,71]
[338868004,1726956667609,-161.176138,0.00028493,78]
[338868005,1726956667619,-161.176138,0.00028493,85]
[338868006,1726956667630,-161.176138,0.00028493,92]
[338868007,1726956667639,-161.176138,0.00028493,99]
[338868008,1726956667649,-161.176138,0.00028493,106]
[338868009,1726956667658,-161.176138,0.00028493,113]
[338868010,1726956667668,-161.176138,0.00028493,120]
[338868011,1726956667678,-10599.54,0.000285,14]
[338868012,1726956667687,-700.0,0.000285,10]
[338868013,1726956667696,-153.0,0.00028576,2]
[338868014,1726956667707,-153.0,0.00028576,2]
[338868015,1726956667719,-153.0,0.00028576,2]
[338868016,1726956667729,-153.0,0.00028576,2]
[338868017,1726956667739,-153.0,0.00028576,2]
[338868018,1726956667750,-308.5398537,0.00028576,2]
[338868019,1726956667760,-1500.0,0.00028636,42]
[338868020,1726956667770,-524.0,0.00028666,2]
[338868021,1726956667780,-150.0,0.00028666,2]
[338868022,1726956667790,-1216.0,0.00028666,2]
[338868023,1726956667800,-183677.91,0.000287,14]
[338868024,1726956667811,-338.0,0.00028863,2]
[338868025,1726956667820,-712.0,0.00028997,2]
[338868026,1726956667830,-712.0,0.00028997,2]
[338868027,1726956667841,-854.72842698,0.00029,2]
[338868028,1726956667851,-36040.72731507,0.00029,2]
[338868029,1726956667861,-1000.0,0.00029,29]
[338868030,1726956667870,-2000.0,0.00029,7]
[338868031,1726956667879,-9666.0,0.00029,10]
[338868032,1726956667890,-53340.5897177,0.00029,30]
[338868033,1726956667900,-395916.74,0.00029,14]
[338868034,1726956667910,-1500.0,0.00029045,42]
[338868035,1726956667921,-338.0,0.00029106,2]
[338868036,1726956667931,-600.0,0.000294,120]
[338868037,1726956667941,-13249.6041,0.00029413,30]
[338868038,1726956667951,-1500.0,0.00029455,42]
[338868039,1726956667962,-5000.0,0.00029468,2]
[338868040,1726956667973,-10599.54,0.000295,14]
[338868041,1726956667982,-700.0,0.000295,12]
[338868042,1726956667992,-712.0,0.00029722,2]
[338868043,1726956668003,-186.88188685,0.00029808,14]
[338868044,1726956668014,-1500.0,0.00029864,42]
[338868045,1726956668027,-814.2980552,0.000299,15]
[338868046,1726956668038,-644.1711973,0.000299,2]
[338868047,1726956668048,-388.78616748,0.0003,10]
[338868048,1726956668058,-50000.0,0.0003,7]
[338868049,1726956668069,-872.9832959,0.0003,15]
[338868050,1726956668079,-1500.0,0.0003,2]
[338868051,1726956668089,-1012.15809912,0.0003,7]